[Event "44th Chess Olympiad Women 2022"]
[Site "Chennai"]
[Date "2022.08.05"]
[Round "7.33"]
[White "Silva, Mariana Sofia T."]
[Black "Samaganova, Alexandra"]
[Result "0-1"]
[ECO "E06"]
[WhiteElo "1912"]
[BlackElo "1864"]
[Annotator "TA"]
[PlyCount "110"]
[EventDate "2022.07.29"]
[EventType "team-tourn"]
[EventCountry "IND"]
[SourceTitle "playchess.com"]
[Source "ChessBase"]
[SourceQuality "1"]
[WhiteTeam "Portugal"]
[BlackTeam "Kyrgyzstan"]
[WhiteTeamCountry "POR"]
[BlackTeamCountry "KGZ"]
[TimeControl "40/5400+30:1800+30"]

{[%evp 16,110,52,34,37,36,80,89,87,86,166,156,159,123,111,116,121,131,157,141,133,78,116,87,80,76,139,125,162,156,283,138,240,241,232,239,431,420,558,551,534,535,1267,1215,6118,286,300,291,287,279,286,278,246,235,665,283,219,218,444,107,159,26,31,8,8,8,8,2,8,0,8,8,141,0,0,0,0,0,8,0,0,0,0,0,0,0,0,0,0,0,0,0,0,-29989,-29990,-29998,-29999]} 1. d4 {[%emt 0:00:02]} Nf6 {[%emt 0:00:16]} 2. c4 {[%emt 0:00:08]} e6 {[%emt 0:00:25]} 3. g3 {[%emt 0:00:06]} d5 {[%emt 0:00:55]} 4. Bg2 {[%emt 0:00:06]} c5 {[%emt 0:00:55]} 5. cxd5 {[%emt 0:00:19]} Nxd5 {[%emt 0:08:39]} 6. Nf3 {[%emt 0:02:03]} Nc6 {[%emt 0:02:51]} 7. O-O {[%emt 0:00:42]} Be7 {[%emt 0:05:04]} 8. dxc5 {[%emt 0:01:09]} Bxc5 {[%emt 0:02:14]} 9. Qc2 {[%emt 0:00:33]} Qe7 {[%emt 0:07:45] is the legacy move (9...Be7). E06: Closed Catalan: Early deviations.} 10. a3 {[%emt 0:02:44]} a5 {[%emt 0:05:20]} 11. e4 {[%emt 0:02:30]} Nc7 {[%emt 0:07:33] White is better.} 12. e5 {[%emt 0:05:07] [#]} f6 $146 {[%emt 0:14:56] Prevents Bg5.} (12... Ba7 $16) ({Predecessor:} 12... h6 13. Nc3 Bd7 14. Ne4 Na6 15. Be3 Bxe3 16. Nd6+ Kf8 17. fxe3 Nd8 18. Nh4 Kg8 19. Bxb7 {1-0 (33) Hess,M (2326)-Demir,B (2069) Tegernsee 2018}) 13. exf6 $18 {[%emt 0:05:02]} gxf6 {[%emt 0:00:14]} 14. Nc3 {[%emt 0:03:14]} O-O {[%emt 0:08:51]} 15. Bh6 {[%emt 0:05:33]} Rf7 {[%emt 0:02:36]} 16. Rad1 {[%emt 0:07:38]} e5 {[%emt 0:03:57]} 17. Ne4 {[%emt 0:09:41]} Bd4 {[%emt 0:02:44]} 18. h3 {[%emt 0:09:53] Against Bg4} (18. Qd2 $142) 18... Be6 {[%emt 0:02:29]} 19. Rfe1 {[%emt 0:02:55]} Rd8 {[%emt 0:02:03]} 20. Qa4 {[%emt 0:15:36]} (20. Nxd4 Nxd4 21. Qc1 Ncb5 $11) 20... Bb6 {[%emt 0:07:07]} (20... Bd5 $142) 21. Rxd8+ $16 {[%emt 0:01:50]} Nxd8 {[%emt 0:00:44]} 22. Rd1 $1 {[%emt 0:00:31][%cal Of3e5]} Bd5 {[%emt 0:06:08]} (22... Ne8 $16 {was worth a try.} 23. Qb5 Bc7) 23. Nc3 {[%emt 0:01:22]} (23. Nh4 $1 $18 {[%cal Rh4f5] is the precise move to win. Hoping for Nf5.} Be6 24. Nd6) 23... Bc6 {[%emt 0:03:33]} (23... Be6 $16) 24. Qg4+ $18 {[%emt 0:03:31]} Kh8 {[%emt 0:00:14]} 25. Nh4 {[%emt 0:01:26]} Nce6 $2 {[%emt 0:01:02]} (25... Bd7 {was called for.} 26. Qh5 Bd4) 26. Nf5 {[%emt 0:00:48]} Qc7 {[%emt 0:00:41]} 27. Nd5 {[%emt 0:03:03]} Bxd5 {[%emt 0:00:11]} 28. Bxd5 {[%emt 0:00:14] Strongly threatening Qa4.} Rd7 {[%emt 0:02:38]} 29. Rc1 {[%emt 0:02:39]} Qb8 {[%emt 0:00:18] [#]} 30. Ng7 $2 {[%emt 0:07:17]} Rxg7 {[%emt 0:01:15]} 31. Bxg7+ {[%emt 0:00:08]} Nxg7 {[%emt 0:01:30] [#]} 32. Qd7 {[%emt 0:01:13] aiming for Rc8.} (32. Rc8 Qd6 33. Qf3 f5 34. Bxb7 e4 $15) 32... e4 {[%emt 0:00:10] ( -> ...Qxg3+)} 33. Kg2 {[%emt 0:00:40]} Qe5 {[%emt 0:00:51]} 34. Rc8 {[%emt 0:00:59] And now Qf7 would win.} e3 $2 {[%emt 0:00:47]} (34... h5 35. Qf7 Kh7 36. Qg8+ Kh6) 35. Rxd8+ {[%emt 0:00:52]} (35. Qf7 $142 {[%cal Rf7f8]} Qe8 36. Qxf6 (36. Qxe8+ Nxe8 37. fxe3 Nd6 $11)) 35... Bxd8 {[%emt 0:00:01]} 36. Qxd8+ {[%emt 0:00:10][%mdl 4096] Endgame KQB-KQN} Ne8 $2 {[%emt 0:00:20]} (36... Qe8 {might work better.} 37. Qxe8+ (37. Qxf6 $2 e2 $19) 37... Nxe8 38. fxe3 b6) 37. fxe3 $2 {[%emt 0:01:35]} (37. f4 $18 {and White stays clearly on top.} Qxb2+ 38. Kf3) 37... Qxe3 {[%emt 0:00:25]} ({Black should try} 37... Qxb2+ 38. Kf3 Qb5) 38. Bf3 {[%emt 0:01:20]} (38. Bxb7 $16 {h4 is the strong threat.} Qe2+ 39. Kh1) 38... Qe5 $11 {[%emt 0:00:47]} 39. h4 {[%emt 0:02:53]} Qxb2+ {[%emt 0:00:43]} 40. Kh3 {[%emt 0:00:15]} Qe5 {[%emt 0:00:43]} 41. Qc8 {[%emt 0:05:51]} Kg7 {[%emt 0:10:19]} 42. Qd7+ {[%emt 0:03:35]} Kf8 {[%emt 0:13:47]} 43. Qxh7 {[%emt 0:04:46]} Ng7 {[%emt 0:01:42]} (43... b5 $11) 44. Bg4 {[%emt 0:08:24]} ({White should play} 44. Bxb7 $16 {Black must now prevent Qe4.} Nf5 45. Qg6) 44... Qd5 {[%emt 0:01:23][%cal Rd5h1]} 45. Qb1 {[%emt 0:03:10] Prevents Qh1+.} f5 {[%emt 0:01:47]} 46. Qf1 {[%emt 0:01:02]} Ke7 {[%emt 0:00:49]} 47. Bf3 {[%emt 0:00:10]} Qb3 {[%emt 0:00:42]} 48. Qe2+ {[%emt 0:02:23]} Ne6 {[%emt 0:00:39]} 49. a4 {[%emt 0:02:42]} Kf6 {[%emt 0:00:15]} 50. Qd1 {[%emt 0:01:30]} Qc3 {[%emt 0:01:44]} 51. Kh2 {[%emt 0:02:18]} (51. Bxb7 {is a self mate.} Nf4+ 52. Kh2 Qb2+ 53. Kg1 Nh3+ 54. Kh1 Nf2+ 55. Kg1 Nxd1 56. Bd5 Qd4+ 57. Kg2 Qxd5+ 58. Kg1 Qf3 59. Kh2 Ne3 60. Kh3 Qh1#) 51... b6 {[%emt 0:01:16]} 52. h5 {[%emt 0:01:27]} Nd4 {[%emt 0:00:38]} 53. Bg2 {[%emt 0:00:23]} Kg5 {[%emt 0:00:44]} 54. Qb1 $2 {[%emt 0:00:59][%mdl 8192]} (54. Qf1 $11 Qc7 55. Qe1) 54... Ne2 {[%emt 0:00:28]} 55. Bf1 {[%emt 0:01:02]} Qxg3+ {[%emt 0:00:11] Weighted Error Value: White=0.62/Black=0.46} 0-1

[Event "44th Chess Olympiad Women 2022"]
[Site "Chennai"]
[Date "2022.08.05"]
[Round "7.34"]
[White "Johannsdottir, Johanna Bjorg"]
[Black "Abrorova, Sabrina"]
[Result "1-0"]
[ECO "B80"]
[WhiteElo "1976"]
[BlackElo "1799"]
[Annotator "TA"]
[PlyCount "95"]
[EventDate "2022.07.29"]
[EventType "team-tourn"]
[EventCountry "IND"]
[SourceTitle "playchess.com"]
[Source "ChessBase"]
[SourceQuality "1"]
[WhiteTeam "Iceland"]
[BlackTeam "Tajikistan"]
[WhiteTeamCountry "ISL"]
[BlackTeamCountry "TJK"]
[TimeControl "40/5400+30:1800+30"]

{[%evp 11,95,16,35,15,10,12,18,9,39,9,18,-17,-6,-24,-15,-10,-18,-45,-41,-65,-16,-61,0,0,44,41,44,8,281,275,266,271,312,119,120,113,122,101,118,110,111,129,116,135,119,132,111,85,173,178,130,49,223,201,205,206,186,189,363,115,310,310,664,665,879,875,1147,687,679,674,653,647,698,719,718,703,958,939,881,862,1083,1039,840,810,1433,1338]} 1. e4 {[%emt 0:00:04]} c5 {[%emt 0:00:15]} 2. Nf3 {[%emt 0:00:06]} d6 {[%emt 0:00:21]} 3. d4 {[%emt 0:00:04]} cxd4 {[%emt 0:00:12]} 4. Nxd4 {[%emt 0:00:04]} Nf6 {[%emt 0:00:33]} 5. Nc3 {[%emt 0:00:04]} a6 {[%emt 0:00:43]} 6. g3 {[%emt 0:00:06]} e6 {[%emt 0:04:22]} 7. a4 {[%emt 0:01:10] B80: Sicilian Scheveningen: 6 g3 and 6 Be3, including English Attack.} b6 {[%emt 0:03:11]} 8. Bg2 {[%emt 0:01:29][%cal Od4e6] next Nxe6! is good for White.} Bb7 $1 {[%emt 0:01:24]} 9. O-O {[%emt 0:00:23] The position is equal.} Qc7 {[%emt 0:02:53]} 10. Be3 {[%emt 0:04:04]} Nbd7 {[%emt 0:10:13]} 11. f3 {[%emt 0:04:15] [#]} Be7 $146 {[%emt 0:19:51]} ({Predecessor:} 11... Rc8 12. Qe2 Be7 13. Rfc1 O-O 14. Nd1 d5 15. exd5 Nxd5 16. Bf2 Bf6 17. Ra3 Rfe8 {0-1 (61) Denda,R (1881)-Thieme,H (2010) Eckernfoerde 2010}) 12. Qd2 {[%emt 0:05:00]} Rc8 {[%emt 0:03:05]} 13. Rad1 {[%emt 0:10:34]} Ne5 {[%emt 0:04:13]} 14. Bf2 {[%emt 0:03:06]} h5 {[%emt 0:18:14][%cal Oh5h4]} 15. Nde2 {[%emt 0:02:04]} Nfd7 {[%emt 0:04:42]} (15... g5 $15) 16. b3 {[%emt 0:05:55]} Qc6 {[%emt 0:08:23]} ({Black should play} 16... h4 $15) 17. h3 $11 {[%emt 0:04:07]} b5 {[%emt 0:03:26]} 18. f4 {[%emt 0:04:46] Prevents g5.} Ng6 $1 {[%emt 0:00:24]} 19. Rc1 {[%emt 0:08:46]} f5 $2 {[%emt 0:09:56][%mdl 8192]} (19... O-O $11 {and Black has nothing to worry.}) 20. axb5 $18 {[%emt 0:02:40]} axb5 {[%emt 0:00:07] [#]} 21. Nxb5 $1 {[%emt 0:00:38][%mdl 512]} fxe4 {[%emt 0:03:48]} (21... Qxb5 $2 22. Nd4 Qc5 23. Nxe6 $16) (21... Nf6 22. Na7) 22. Nbd4 {[%emt 0:01:08]} (22. Ned4 $18 e3 23. Bxe3 (23. Bxc6 exd2 24. Bxb7 dxc1=R $18) 23... Qxg2+ 24. Qxg2 Bxg2 25. Kxg2) 22... e3 $16 {[%emt 0:00:40][%csl Gb7][%cal Rc6g2]} 23. Bxc6 {[%emt 0:01:23]} exd2 {[%emt 0:00:02]} 24. Bxb7 {[%emt 0:04:11]} dxc1=Q {[%emt 0:00:40]} 25. Rxc1 {[%emt 0:01:59]} Rb8 {[%emt 0:00:38]} 26. Be4 {[%emt 0:00:32][%cal Bb7e4,Be4d3,Bd3b5][%mdl 1056] White has strong compensation. This bishop pair is nice.} Ngf8 {[%emt 0:00:39]} 27. Nc6 {[%emt 0:01:42]} Rc8 {[%emt 0:00:22]} 28. Ned4 {[%emt 0:03:10] 0x0.0013bc3050cddp-1022s more active pieces.} d5 {[%emt 0:00:27]} 29. Bd3 {[%emt 0:00:34]} Nc5 {[%emt 0:00:41]} (29... Bd6 $16 {might work better.}) 30. Bb5 $36 {[%emt 0:00:37][%mdl 2048] White is really pushing.} Kf7 {[%emt 0:00:34]} 31. Ra1 {[%emt 0:08:10]} (31. Nxe7 $16 Kxe7 32. Ra1) 31... Nfd7 $2 {[%emt 0:00:27]} (31... Bd6 $1 $14) 32. Nxe7 {[%emt 0:03:42]} (32. Ra7 Ra8 $11) 32... Kxe7 {[%emt 0:00:02] [#]} 33. b4 $1 {[%emt 0:01:14]} ({Inferior is} 33. Ra7 Ra8 $11) 33... Ne4 {[%emt 0:00:17]} 34. Ra7 {[%emt 0:00:17]} Nef6 {[%emt 0:00:29]} (34... Rhd8 {was necessary.} 35. Nc6+ Rxc6) 35. Ra6 $2 {[%emt 0:03:53]} (35. Nf3 $18 {and the rest is easy.}) 35... Nf8 $2 {[%emt 0:01:10]} (35... Kf7 $16 {was called for.}) 36. Nc6+ {[%emt 0:00:48]} Kf7 $2 {[%emt 0:00:29]} (36... Rxc6 37. Bxc6 N8d7) 37. Ra7+ {[%emt 0:00:06][%cal Ba6a7,Ba7d7,Bd7d6][%mdl 96] Skewer. White is clearly winning.} N6d7 {[%emt 0:00:33]} 38. Ne5+ {[%emt 0:00:22]} Kf6 {[%emt 0:00:27]} 39. Nxd7+ {[%emt 0:00:41]} Nxd7 {[%emt 0:00:07]} 40. Rxd7 {[%emt 0:00:09]} e5 {[%emt 0:00:54]} 41. Rd6+ {[%emt 0:33:09]} Ke7 {[%emt 0:30:34]} 42. Bc5 {[%emt 0:02:00]} exf4 {[%emt 0:00:00]} 43. gxf4 {[%emt 0:00:00]} d4 {[%emt 0:00:00]} 44. Rxd4+ {[%emt 0:00:00]} Kf6 {[%emt 0:00:00]} 45. Rd6+ {[%emt 0:00:00]} Kf7 {[%emt 0:00:00]} 46. Bc4+ {[%emt 0:00:00]} Ke8 {[%emt 0:00:00]} 47. Ba6 {[%emt 0:00:00]} Rc7 {[%emt 0:00:00]} 48. Bb6 {[%emt 0:06:58] Weighted Error Value: White=0.37/Black=0.56} 1-0

[Event "44th Chess Olympiad Women 2022"]
[Site "Chennai"]
[Date "2022.08.05"]
[Round "7.34"]
[White "Antonova, Nadezhda"]
[Black "Ptacnikova, Lenka"]
[Result "1-0"]
[ECO "E08"]
[WhiteElo "1832"]
[BlackElo "2066"]
[Annotator "TA"]
[PlyCount "105"]
[EventDate "2022.07.29"]
[EventType "team-tourn"]
[EventCountry "IND"]
[SourceTitle "playchess.com"]
[Source "ChessBase"]
[SourceQuality "1"]
[WhiteTeam "Tajikistan"]
[BlackTeam "Iceland"]
[WhiteTeamCountry "TJK"]
[BlackTeamCountry "ISL"]
[TimeControl "40/5400+30:1800+30"]

{[%evp 15,105,10,20,4,20,-36,31,37,53,42,68,75,66,56,83,62,71,64,84,84,84,75,102,84,87,54,72,54,53,41,38,0,41,0,0,0,0,0,0,0,0,0,0,-43,0,0,0,-43,0,0,0,0,0,0,0,0,54,71,43,50,31,41,226,205,210,154,316,303,397,201,168,132,87,13,60,13,13,0,65,65,174,62,493,449,29988,29982,29982,29983,29983,29984,29984,6512]} 1. d4 {[%emt 0:00:03]} Nf6 {[%emt 0:00:12]} 2. c4 {[%emt 0:00:14]} e6 {[%emt 0:00:19]} 3. g3 {[%emt 0:00:26]} d5 {[%emt 0:00:59]} 4. Nf3 {[%emt 0:00:26]} c6 {[%emt 0:02:21]} 5. Bg2 {[%emt 0:00:49]} Nbd7 {[%emt 0:01:32]} 6. Qc2 {[%emt 0:03:11]} Be7 {[%emt 0:00:32]} 7. O-O {[%emt 0:00:12]} O-O {[%emt 0:00:17]} 8. Bf4 {[%emt 0:00:44]} Ne4 {[%emt 0:05:21]} 9. Nfd2 {[%emt 0:01:51] E08: Closed Catalan: Main Line: 7 Qc2.} g5 {[%emt 0:17:49]} 10. Be3 {[%emt 0:02:46]} ({Better is} 10. Nxe4 $11 gxf4 11. cxd5) 10... f5 {[%emt 0:07:20]} (10... Nd6 $1 $15) 11. Nxe4 $14 {[%emt 0:02:47] White is slightly better.} dxe4 {[%emt 0:04:51]} 12. Nc3 {[%emt 0:02:21] [#]} Nb6 $146 {[%emt 0:05:49]} ({Predecessor:} 12... Qe8 13. Rad1 Qh5 14. Qc1 e5 15. dxe5 Nxe5 16. Bd4 Ng4 17. h3 Nh6 {1-0 (39) Yeletsky,I (2422)-Aroesti,R (2261) Montevideo 2017}) 13. b3 {[%emt 0:01:56]} Bd7 {[%emt 0:08:13]} 14. Rad1 {[%emt 0:04:17]} Rc8 {[%emt 0:00:51]} 15. a4 {[%emt 0:03:51]} a5 {[%emt 0:01:11]} 16. Bc1 {[%emt 0:04:18]} Qc7 {[%emt 0:01:23]} 17. f3 {[%emt 0:08:51]} exf3 {[%emt 0:12:06]} 18. exf3 {[%emt 0:06:32][%cal Be2f3,Bf3f4][%mdl 32]} Bf6 {[%emt 0:00:38]} 19. f4 {[%emt 0:02:58]} g4 {[%emt 0:00:13]} 20. Kh1 {[%emt 0:01:10]} h5 {[%emt 0:01:52]} 21. Qf2 {[%emt 0:05:34]} Rcd8 {[%emt 0:02:53][%cal Oh5h4]} 22. Be3 {[%emt 0:02:40][%cal Od4d5]} Nc8 {[%emt 0:00:06][%cal Oh5h4]} 23. Rc1 {[%emt 0:02:11]} Rf7 {[%emt 0:12:44][%cal Oh5h4]} 24. Ne2 {[%emt 0:04:20]} h4 {[%emt 0:02:34]} 25. gxh4 {[%emt 0:00:22]} Rh7 {[%emt 0:00:11]} 26. Ng3 {[%emt 0:06:26]} Bxh4 {[%emt 0:00:25]} 27. d5 {[%emt 0:00:47]} c5 {[%emt 0:04:46]} 28. Kg1 {[%emt 0:00:33]} b6 {[%emt 0:00:10]} 29. Bd2 {[%emt 0:03:36][%cal Be3d2,Bd2c3,Bc3e5][%mdl 32]} Ne7 {[%emt 0:01:23]} 30. Bc3 {[%emt 0:01:41][%cal Od5d6] Strongly threatening d6!} exd5 {[%emt 0:01:00]} 31. cxd5 {[%emt 0:00:21]} (31. Be5 $5 {[%cal Re5c7]} Qb7 32. cxd5 $11) 31... Ng6 {[%emt 0:00:40] Inhibits Be5.} 32. Rce1 {[%emt 0:12:46]} Bc8 {[%emt 0:03:03]} 33. Be5 {[%emt 0:03:09]} Qf7 {[%emt 0:00:39]} 34. Rd1 {[%emt 0:03:05]} Bb7 {[%emt 0:00:51][%cal Rb7d5]} 35. Qd2 {[%emt 0:00:29]} Rd7 {[%emt 0:01:51]} (35... Bxg3 $11 36. hxg3 Nxe5 37. fxe5 Qh5) 36. Qd3 {[%emt 0:02:03]} Bxg3 {[%emt 0:00:30]} 37. hxg3 {[%emt 0:00:50]} Ne7 {[%emt 0:00:37][%cal Re7d5]} 38. d6 {[%emt 0:00:53] aiming for Bxb7.} Nc8 $2 {[%emt 0:00:42]} (38... Bxg2 $14 39. Kxg2 Nc6) 39. Bxb7 $18 {[%emt 0:04:49]} Rxb7 {[%emt 0:00:08]} 40. Kg2 {[%emt 0:01:01] And now Rh1 would win.} Rd7 $2 {[%emt 0:00:42]} (40... Qh5 $2 41. Rh1 Qh3+ 42. Rxh3 $18) (40... Qd7 $16 {might work better.}) 41. Rh1 $1 {[%emt 0:31:47] Black must now prevent Rxh7.} ({Less strong is} 41. Qa6 Rd8 $14) 41... Ne7 {[%emt 0:30:39]} 42. Rxh7 {[%emt 0:00:00]} (42. Kf2 $142 Rh3 43. Rxh3 gxh3 44. Qf3) 42... Kxh7 {[%emt 0:00:00]} 43. Qb5 $36 {[%emt 0:00:00][%mdl 2048] Black is under strong pressure. Dancing on a razor blade.} Nd5 {[%emt 0:00:00] [#] Hoping for ...Ne3+.} 44. Kf2 {[%emt 0:00:00] Prevents Ne3.} (44. Rd2 $1 $16 {Qc6 is the strong threat.} Kg6 45. Qc6) 44... Nb4 {[%emt 0:00:00] Against Qc6} (44... Kg6 $11 {feels stronger.}) 45. Rd2 {[%emt 0:00:00]} (45. Qc4 $14 Kg6 46. Ke3) 45... Kg6 $11 {[%emt 0:00:00]} 46. Qc4 {[%emt 0:00:00]} Qe8 {[%emt 0:00:00]} (46... Qxc4 $11 47. bxc4 Kf7) 47. Re2 $14 {[%emt 0:00:00] White is more active.} Rh7 {[%emt 0:00:00]} (47... Qf7 $1 $14) 48. Ke1 {[%emt 0:01:23]} (48. Ke3 $18) 48... Rh1+ $2 {[%emt 0:00:00][%mdl 8192] [#]} ({Black should try} 48... Qf7 $1 $14) 49. Kd2 $1 $18 {[%emt 0:00:22] Intending Bc3 and mate.} Kh5 {[%emt 0:00:00]} (49... Qf7 $18 50. Bc3 (50. Qxf7+ Kxf7 51. Bc3 Nc6 $11) 50... Qxc4 51. bxc4 Nc6) 50. Bc3 {[%emt 0:00:44] White mates.} Qd7 {[%emt 0:00:00]} 51. Qe6 {[%emt 0:01:00]} Qxe6 {[%emt 0:00:00]} 52. Rxe6 {[%emt 0:00:01]} Rh2+ {[%emt 0:00:00]} 53. Kd1 {[%emt 0:01:00] Weighted Error Value: White=0.21 (precise) /Black=0.55} 1-0

[Event "44th Chess Olympiad Women 2022"]
[Site "Chennai"]
[Date "2022.08.05"]
[Round "7.34"]
[White "Saidova, Rukhshona"]
[Black "Thorsteinsdottir, Hallgerdur"]
[Result "1/2-1/2"]
[ECO "B19"]
[WhiteElo "1624"]
[BlackElo "1934"]
[Annotator "TA"]
[PlyCount "135"]
[EventDate "2022.07.29"]
[EventType "team-tourn"]
[EventCountry "IND"]
[SourceTitle "playchess.com"]
[Source "ChessBase"]
[SourceQuality "1"]
[WhiteTeam "Tajikistan"]
[BlackTeam "Iceland"]
[WhiteTeamCountry "TJK"]
[BlackTeamCountry "ISL"]
[TimeControl "40/5400+30:1800+30"]

{[%evp 26,135,33,35,31,33,33,33,31,27,64,59,60,20,92,8,8,7,8,0,0,0,0,0,0,0,40,-237,-233,-236,-199,-185,-184,-186,-131,-153,-106,-254,243,230,220,208,206,205,231,211,223,96,239,182,252,267,533,600,446,562,581,586,556,508,709,720,659,609,535,507,486,468,424,397,1031,1072,940,854,728,285,250,206,175,-139,-139,-121,-78,-78,-78,-78,-86,-93,-8,-8,-8,-8,-8,-8,-8,-8,-8,-8,-8,-16,-8,-8,-8,-8,-8,-8,0,-8,0,-8,0,-8]} 1. e4 {[%emt 0:00:07]} c6 {[%emt 0:00:12]} 2. d4 {[%emt 0:00:23]} d5 {[%emt 0:00:13]} 3. Nc3 {[%emt 0:00:13]} dxe4 {[%emt 0:00:26]} 4. Nxe4 {[%emt 0:00:14]} Bf5 {[%emt 0:00:43]} 5. Ng3 {[%emt 0:00:37]} Bg6 {[%emt 0:00:23]} 6. h4 {[%emt 0:00:33]} h6 {[%emt 0:00:49]} 7. h5 {[%emt 0:00:44]} Bh7 {[%emt 0:00:28]} 8. Nf3 {[%emt 0:00:25]} e6 {[%emt 0:07:34]} 9. Bd3 {[%emt 0:01:23]} Bxd3 {[%emt 0:00:36]} 10. Qxd3 {[%emt 0:00:11]} Nf6 {[%emt 0:04:50]} 11. Bd2 {[%emt 0:03:10]} Nbd7 {[%emt 0:09:18]} 12. O-O-O {[%emt 0:01:33]} Be7 {[%emt 0:00:17]} 13. Kb1 {[%emt 0:01:27]} O-O {[%emt 0:00:31]} 14. Ne4 {[%emt 0:01:29]} Nxe4 {[%emt 0:03:31] B19: Classical Caro-Kann: 4...Bf5 main line.} 15. Qxe4 {[%emt 0:00:12]} Nf6 {[%emt 0:00:15]} 16. Qe2 {[%emt 0:01:20][%cal Og2g4]} Qd5 {[%emt 0:01:30] White is slightly better.} 17. Ne5 {[%emt 0:04:27]} a5 {[%emt 0:04:32][%cal Ba7a5,Ba5a4,Ba4a3][%mdl 32]} (17... Qxg2 18. Rdg1 Qe4 19. Qxe4 Nxe4 20. Bxh6 $16) 18. f3 {[%emt 0:06:20] [#]} a4 $146 {[%emt 0:02:34]} ({Predecessor:} 18... Qxd4 19. Bxh6 Qxd1+ 20. Rxd1 gxh6 21. g4 Rad8 22. Rf1 Nd5 23. f4 Bf6 24. a3 Nc7 25. g5 hxg5 26. fxg5 Bh8 27. h6 Rd5 28. h7+ Kg7 29. Qh5 {1-0 (29) Cchung,C (1753)-Houpst,C (1711) Utrecht 2018}) 19. Bc1 {[%emt 0:09:08]} Qa5 {[%emt 0:16:52] [#]} (19... a3 $11 {keeps the balance.} 20. b3 Rfd8) 20. Ng6 $1 {[%emt 0:06:30] White is more active.} Rfe8 $11 {[%emt 0:00:43]} 21. Nxe7+ {[%emt 0:00:29]} Rxe7 {[%emt 0:00:05]} 22. g4 {[%emt 0:01:37]} a3 {[%emt 0:03:12] aiming for ...Nd5.} 23. Bd2 {[%emt 0:06:03]} Qb6 {[%emt 0:03:31][%csl Ga3,LRb2,LRd4][%cal Rb6b2]} 24. b3 {[%emt 0:05:06] Strongly threatening g5.} Qxd4 {[%emt 0:03:03][%csl Ga3][%cal Rd4b2]} 25. c3 $1 {[%emt 0:03:13]} Qc5 {[%emt 0:04:28]} 26. g5 $2 {[%emt 0:10:18][%mdl 8192]} (26. b4 $1 $14 Qd5 27. Bxh6 $1) 26... hxg5 $19 {[%emt 0:02:13]} 27. h6 {[%emt 0:01:29]} g6 {[%emt 0:01:21]} 28. h7+ {[%emt 0:01:38]} Kh8 {[%emt 0:00:33]} 29. Rdg1 {[%emt 0:01:31]} Qf5+ {[%emt 0:15:12]} (29... Nd5 $19 30. Qd3 Nf4 31. Qd4+ Qxd4 32. cxd4 Rd7 33. Rxg5 Nh5) 30. Kc1 $17 {[%emt 0:00:43]} Nd5 {[%emt 0:07:15]} (30... Rd7 $142 31. Rxg5 Qd3) 31. Bxg5 {[%emt 0:10:14]} (31. Rxg5 $17 {is the only way for White.} Nf4 32. Qe5+ Qxe5 33. Rxe5) 31... Nf4 $4 {[%emt 0:00:25][%mdl 8192]} ({Avoid the trap} 31... Nxc3 $2 32. Qc2 Nxa2+ 33. Qxa2 $19) (31... f6 $19 {and life is good for Black.} 32. Bd2 Nf4 33. Bxf4 Qxf4+ 34. Qd2 Qxd2+ 35. Kxd2 Rxh7) 32. Qe4 $18 {[%emt 0:03:00] Threatening mate with Qxf5.} Nd5 {[%emt 0:07:32]} 33. Bxe7 $40 {[%emt 0:03:20][%mdl 128] White wants a kill. Dancing on a razor blade.} Nxe7 {[%emt 0:00:03] [#]} 34. Qxf5 {[%emt 0:00:23]} exf5 {[%emt 0:01:43][%mdl 4096] Endgame KRR-KRN} 35. Re1 {[%emt 0:05:34]} Nd5 {[%emt 0:00:04] [#]} 36. Kc2 {[%emt 0:00:17]} (36. c4 $1 $18 {[%cal Rc4d5] and the rest is easy.} Nb4 37. Kb1) 36... Kg7 {[%emt 0:00:51]} (36... g5 $16) 37. b4 {[%emt 0:02:05]} b5 {[%emt 0:00:39]} (37... f4 $142 38. Re5 Kh8) 38. Kb3 {[%emt 0:01:36]} Nf6 $2 {[%emt 0:00:29]} (38... f4 {might work better.} 39. Re4 (39. c4 Ne3 $18) 39... Nf6) 39. h8=Q+ {[%emt 0:03:38]} Rxh8 {[%emt 0:00:06]} 40. Rxh8 {[%emt 0:00:04]} Kxh8 {[%emt 0:00:05]} 41. Kxa3 {[%emt 0:31:12] KR-KN} Kg7 {[%emt 0:05:17]} 42. Kb3 {[%emt 0:00:00]} g5 {[%emt 0:00:42]} 43. c4 {[%emt 0:00:00]} g4 {[%emt 0:06:02]} 44. fxg4 {[%emt 0:00:00]} fxg4 {[%emt 0:02:36]} 45. cxb5 {[%emt 0:00:00]} cxb5 {[%emt 0:00:11]} 46. Re5 {[%emt 0:00:00]} Kg6 {[%emt 0:01:18]} 47. Rxb5 {[%emt 0:00:00]} Ne4 $2 {[%emt 0:03:41]} (47... g3 48. Rc5 Ne4) 48. Rd5 {[%emt 0:00:00]} f5 {[%emt 0:05:46]} 49. Rd1 {[%emt 0:01:34]} f4 {[%emt 0:02:33]} 50. a4 $2 {[%emt 0:01:09]} (50. b5 {Kb4 is the strong threat.} g3 51. b6) 50... g3 {[%emt 0:02:32] Hoping for ...g2.} 51. a5 {[%emt 0:02:35]} g2 {[%emt 0:01:59][%cal Oe4d2] Threatens to win with ...Nd2+!} 52. Rg1 $2 {[%emt 0:00:30]} (52. a6 $18 {White threatens a7 and mate.} Nd2+ 53. Ka4) 52... f3 $17 {[%emt 0:00:33]} 53. a6 {[%emt 0:00:35] a7 would kill now.} Kf5 {[%emt 0:02:03]} 54. a7 {[%emt 0:02:48]} f2 {[%emt 0:00:05]} 55. Rxg2 {[%emt 0:01:28]} f1=Q {[%emt 0:00:14]} 56. a8=Q {[%emt 0:00:12] White wants to mate with Qd5+.} Qxg2 {[%emt 0:00:51]} (56... Qf3+ $17 57. Kb2 Qxg2+ 58. Ka1 Qh1+ 59. Kb2 Qg2+ 60. Ka3 Qf3+ 61. Kb2 Qe2+ 62. Ka3 Qd3+ 63. Ka2 Qd2+ 64. Ka3 Qc1+ 65. Ka2 Qc4+ 66. Ka3 Qc3+ 67. Ka2 Qd2+ 68. Ka3 Qd3+ 69. Ka2 Qd2+) 57. Qd5+ $11 {[%emt 0:00:15] The position is equal.} Kf4 {[%emt 0:00:26]} 58. Qf7+ {[%emt 0:00:41]} Ke3 {[%emt 0:00:34]} 59. Qa7+ {[%emt 0:00:26]} Ke2 {[%emt 0:01:06]} 60. Qa6+ {[%emt 0:00:44]} Kf3 {[%emt 0:00:31]} 61. Qd3+ {[%emt 0:00:57]} Kf4 {[%emt 0:00:16]} 62. Qd4 {[%emt 0:00:40]} Qf3+ {[%emt 0:00:53]} 63. Ka4 {[%emt 0:01:01]} Qe2 {[%emt 0:01:09]} 64. b5 {[%emt 0:00:42] Prevents Qa6+.} Kf3 {[%emt 0:00:57]} 65. Qd5 {[%emt 0:00:22]} Kf4 {[%emt 0:00:31]} 66. Qd4 {[%emt 0:00:36] Inhibits Nc3+.} Kf3 {[%emt 0:00:28]} 67. Qd5 {[%emt 0:00:05]} Kf4 {[%emt 0:00:28] ( -> ...Nc3+)} 68. Qd4 {[%emt 0:00:07] Against Nc3+. Black defended with fortune.  Weighted Error Value: White=0.50/Black=0.41} 1/2-1/2